fUSD/lending_fUSD_20250611
["ID","MTS","AMOUNT","RATE_DAILY","PERIOD"]
[365420062,1749661848491,-490.0,0.00019342,2]
[365420063,1749661848501,-791.56,0.00019342,2]
[365420064,1749661848512,-2504.3,0.00019342,2]
[365420065,1749661848522,-490.0,0.00019342,2]
[365420066,1749661848531,-592.4,0.00019342,2]
[365420067,1749661848541,-720.09,0.00019342,2]
[365420068,1749661848552,-6359.47,0.00019342,2]
[365420069,1749661848563,-490.0,0.00019342,2]
[365420070,1749661848572,-490.0,0.00019342,2]
[365420071,1749661848584,-490.0,0.00019342,2]
[365420072,1749661848594,-491.19723,0.00019342,2]
[365420073,1749661848604,-470.0,0.00019342,2]
[365420074,1749661848614,-490.0,0.00019342,2]
[365420075,1749661848624,-524.42,0.00019342,2]
[365420076,1749661848634,-480.0,0.00019342,2]
[365420077,1749661848644,-490.0,0.00019342,2]
[365420078,1749661848655,-783.79,0.00019342,2]
[365420079,1749661848666,-490.0,0.00019342,2]
[365420080,1749661848676,-890.39,0.00019342,2]
[365420081,1749661848686,-490.0,0.00019342,2]
[365420082,1749661848699,-697.65,0.00019342,2]
[365420083,1749661848711,-891.62,0.00019342,2]
[365420084,1749661848723,-490.0,0.00019342,2]
[365420085,1749661848734,-334.84434259,0.00019342,2]
[365420086,1749661848744,-490.0,0.00019342,2]
[365420087,1749661848755,-490.0,0.00019342,2]
[365420088,1749661848767,-490.0,0.00019342,2]
[365420089,1749661848778,-490.0,0.00019342,2]
[365420090,1749661848787,-1342.81,0.00019342,2]
[365420091,1749661848798,-490.0,0.00019342,2]
[365420092,1749661848808,-913.55,0.00019342,2]
[365420093,1749661848818,-470.0,0.00019342,2]
[365420094,1749661848828,-490.0,0.00019342,2]
[365420095,1749661848838,-817.65,0.00019342,2]
[365420096,1749661848849,-490.0,0.00019342,2]
[365420097,1749661848859,-470.0,0.00019342,2]
[365420098,1749661848870,-3371.76,0.00019342,2]
[365420099,1749661848880,-490.0,0.00019342,2]
[365420100,1749661848890,-490.0,0.00019342,2]
[365420101,1749661848901,-490.0,0.00019342,2]
[365420102,1749661848910,-589.73,0.00019342,2]
[365420103,1749661848922,-490.0,0.00019342,2]
[365420104,1749661848932,-490.0,0.00019342,2]
[365420105,1749661848943,-490.0,0.00019342,2]
[365420106,1749661848953,-490.0,0.00019342,2]
[365420107,1749661848963,-490.0,0.00019342,2]
[365420108,1749661848976,-490.0,0.00019342,2]
[365420109,1749661848987,-490.0,0.00019342,2]
[365420110,1749661848997,-687.3,0.00019342,2]
[365420111,1749661849007,-1180.8,0.00019342,2]
[365420112,1749661849018,-480.0,0.00019342,2]
[365420113,1749661849028,-490.0,0.00019342,2]
[365420114,1749661849038,-92.61793353,0.00019342,2]
[365420115,1749661850607,-219.73365262,0.00019078,2]
[365420116,1749661850617,-89.15960461,0.00019177,2]
[365420117,1749661850628,-114.29278707,0.00019177,2]
[365420118,1749661850638,-1111.77887332,0.00019178,2]
[365420119,1749661850649,-515.92050522,0.00019178,2]
[365420120,1749661850796,-410.85062146,0.00019178,2]
[365420121,1749661850805,-490.0,0.00019178,2]
[365420122,1749661850814,-520.50417362,0.00019178,2]
[365420123,1749661850824,-5.2019941,0.00019178,2]
[365420124,1749661850835,-484.7980059,0.00019178,2]
[365420125,1749661850844,-480.0,0.00019178,2]
[365420126,1749661850853,-490.0,0.00019178,2]
[365420127,1749661850863,-480.0,0.00019178,2]
[365420128,1749661850873,-397.38206647,0.00019342,2]
[365420129,1749661850882,-460.0,0.00019342,2]
[365420130,1749661850891,-480.0,0.00019342,2]
[365420131,1749661850900,-1485.04,0.00019342,2]
[365420132,1749661850910,-2812.24,0.00019342,2]
[365420133,1749661850919,-490.0,0.00019342,2]
[365420134,1749661850929,-490.0,0.00019342,2]
[365420135,1749661850938,-992.67,0.00019342,2]
[365420136,1749661850948,-490.0,0.00019342,2]
[365420137,1749661850958,-490.0,0.00019342,2]
[365420138,1749661850967,-490.0,0.00019342,2]
[365420139,1749661850978,-531.6,0.00019342,2]
[365420140,1749661850989,-490.0,0.00019342,2]
[365420141,1749661850998,-506.87505889,0.00019342,2]
[365420142,1749661851008,-490.0,0.00019342,2]
[365420143,1749661851017,-839.79,0.00019342,2]
[365420144,1749661851027,-734.49,0.00019342,2]
[365420145,1749661851036,-652.01,0.00019342,2]
[365420146,1749661851045,-487.95206151,0.00019342,2]
[365420147,1749661851055,-490.0,0.00019342,2]
[365420148,1749661851064,-490.0,0.00019342,2]
[365420149,1749661851074,-724.86,0.00019342,2]
[365420150,1749661851083,-501.91,0.00019342,2]
[365420151,1749661851093,-1408.56,0.00019342,2]
[365420152,1749661851102,-490.0,0.00019342,2]
[365420153,1749661851111,-490.0,0.00019342,2]
[365420154,1749661851121,-490.0,0.00019342,2]
[365420155,1749661851130,-640.62,0.00019342,2]
[365420156,1749661851140,-1591.12,0.00019342,2]
[365420157,1749661851150,-490.0,0.00019342,2]
[365420158,1749661851159,-490.0,0.00019342,2]
[365420159,1749661851169,-490.0,0.00019342,2]
[365420160,1749661851179,-589.33,0.00019342,2]
[365420161,1749661851188,-480.0,0.00019342,2]
[365420162,1749661851198,-490.0,0.00019342,2]
[365420163,1749661851207,-546.8,0.00019342,2]
[365420164,1749661851216,-490.0,0.00019342,2]
[365420165,1749661851227,-942.32,0.00019342,2]
[365420166,1749661851237,-549.1,0.00019342,2]
[365420167,1749661851247,-490.0,0.00019342,2]
[365420168,1749661851256,-490.0,0.00019342,2]
[365420169,1749661851266,-490.0,0.00019342,2]
[365420170,1749661851275,-5794.97,0.00019342,2]
[365420171,1749661851284,-490.0,0.00019342,2]
[365420172,1749661851294,-490.0,0.00019342,2]
[365420173,1749661851303,-490.0,0.00019342,2]
[365420174,1749661851312,-490.0,0.00019342,2]
[365420175,1749661851322,-490.0,0.00019342,2]
[365420176,1749661851331,-490.0,0.00019342,2]
[365420177,1749661851341,-397.07024598,0.00019342,2]
[365420178,1749661851350,-490.0,0.00019342,2]
[365420179,1749661851359,-480.0,0.00019342,2]
[365420180,1749661851369,-490.0,0.00019342,2]
[365420181,1749661851378,-490.0,0.00019342,2]
[365420182,1749661851388,-490.0,0.00019342,2]
[365420183,1749661851397,-490.0,0.00019342,2]
[365420184,1749661851406,-1159.67,0.00019342,2]
[365420185,1749661851416,-470.0,0.00019342,2]
[365420186,1749661851425,-1337.03,0.00019342,2]
[365420187,1749661851435,-490.0,0.00019342,2]
[365420188,1749661851444,-610.72,0.00019342,2]
[365420189,1749661851453,-490.0,0.00019342,2]
[365420190,1749661851463,-490.0,0.00019342,2]
[365420191,1749661851473,-490.0,0.00019342,2]
[365420192,1749661851483,-490.0,0.00019342,2]
[365420193,1749661851493,-490.0,0.00019342,2]
[365420194,1749661851503,-470.0,0.00019342,2]
[365420195,1749661851513,-490.0,0.00019342,2]
[365420196,1749661851522,-490.0,0.00019342,2]
[365420197,1749661851531,-490.0,0.00019342,2]
[365420198,1749661851541,-490.0,0.00019342,2]
[365420199,1749661851550,-490.0,0.00019342,2]
[365420200,1749661851559,-490.0,0.00019342,2]
[365420201,1749661851569,-598.63,0.00019342,2]
[365420202,1749661851579,-630.63,0.00019342,2]
[365420203,1749661851588,-490.0,0.00019342,2]
[365420204,1749661851598,-539.21,0.00019342,2]
[365420205,1749661851608,-490.0,0.00019342,2]
[365420206,1749661851618,-490.0,0.00019342,2]
[365420207,1749661851628,-490.0,0.00019342,2]
[365420208,1749661851637,-672.97,0.00019342,2]
[365420209,1749661851647,-490.0,0.00019342,2]
[365420210,1749661851656,-480.0,0.00019342,2]
[365420211,1749661851665,-702.48,0.00019342,2]
[365420212,1749661851675,-490.0,0.00019342,2]
[365420213,1749661851686,-490.0,0.00019342,2]
[365420214,1749661851699,-709.1,0.00019342,2]
[365420215,1749661851708,-490.0,0.00019342,2]
[365420216,1749661851718,-474.69207752,0.00019342,2]
[365420217,1749661851730,-533.7,0.00019342,2]
[365420218,1749661851739,-770.58,0.00019342,2]
[365420219,1749661851749,-390.75309053,0.00019342,2]
[365420220,1749661851820,-99.24690947,0.00019342,2]
[365420221,1749661851829,-490.0,0.00019342,2]
[365420222,1749661851838,-490.0,0.00019342,2]
[365420223,1749661851847,-490.0,0.00019342,2]
[365420224,1749661851857,-490.0,0.00019342,2]
[365420225,1749661851867,-490.0,0.00019342,2]
[365420226,1749661851876,-666.46,0.00019342,2]
[365420227,1749661851886,-490.0,0.00019342,2]
[365420228,1749661851895,-490.0,0.00019342,2]
[365420229,1749661851905,-490.0,0.00019342,2]
[365420230,1749661851914,-490.0,0.00019342,2]
[365420231,1749661851923,-7911.64,0.00019342,2]
[365420232,1749661851933,-470.0,0.00019342,2]
[365420233,1749661851943,-470.0,0.00019342,2]
[365420234,1749661851952,-490.0,0.00019342,2]
[365420235,1749661851962,-480.0,0.00019342,2]
[365420236,1749661851971,-490.0,0.00019342,2]
[365420237,1749661851981,-490.0,0.00019342,2]
[365420238,1749661851991,-490.0,0.00019342,2]
[365420239,1749661851999,-490.0,0.00019342,2]
[365420240,1749661852008,-301.77559268,0.00019342,2]
[365420241,1749661852017,-490.0,0.00019342,2]
[365420242,1749661852027,-490.0,0.00019342,2]
[365420243,1749661852035,-548.77,0.00019342,2]
[365420244,1749661852044,-490.0,0.00019342,2]
[365420245,1749661852053,-490.0,0.00019342,2]
[365420246,1749661852062,-490.0,0.00019342,2]
[365420247,1749661852072,-480.0,0.00019342,2]
[365420248,1749661852081,-490.0,0.00019342,2]
[365420249,1749661852090,-272.10749785,0.00019342,2]
[365420250,1749661852102,-217.89250215,0.00019342,2]
[365420251,1749661852111,-889.09,0.00019342,2]
[365420252,1749661852120,-2149.14,0.00019342,2]
[365420253,1749661852128,-480.0,0.00019342,2]
[365420254,1749661852138,-2227.24,0.00019342,2]
[365420255,1749661852146,-637.17,0.00019342,2]
[365420256,1749661852156,-1236.64,0.00019342,2]
[365420257,1749661852165,-490.0,0.00019342,2]
[365420258,1749661852174,-490.0,0.00019342,2]
[365420259,1749661852183,-490.0,0.00019342,2]
[365420260,1749661852192,-490.0,0.00019342,2]
[365420261,1749661852201,-490.0,0.00019342,2]
[365420262,1749661852210,-490.0,0.00019342,2]
[365420263,1749661852219,-470.0,0.00019342,2]
[365420264,1749661852229,-1394.46,0.00019342,2]
[365420265,1749661852238,-674.0,0.00019342,2]
[365420266,1749661852247,-539.12,0.00019342,2]
[365420267,1749661852256,-684.33,0.00019342,2]
[365420268,1749661852265,-1624.25,0.00019342,2]
[365420269,1749661852274,-297.93796339,0.00019342,2]
[365420270,1749661852283,-490.0,0.00019342,2]
[365420271,1749661852292,-877.05,0.00019342,2]
[365420272,1749661852301,-590.9,0.00019342,2]
[365420273,1749661852310,-470.0,0.00019342,2]
[365420274,1749661852319,-490.0,0.00019342,2]
[365420275,1749661852330,-490.0,0.00019342,2]
[365420276,1749661852339,-1824.69,0.00019342,2]
[365420277,1749661852348,-292.82579742,0.00019342,2]
[365420278,1749661852357,-490.0,0.00019342,2]
[365420279,1749661852366,-490.0,0.00019342,2]
[365420280,1749661852376,-490.0,0.00019342,2]
[365420281,1749661852385,-490.0,0.00019342,2]
[365420282,1749661852394,-490.0,0.00019342,2]
[365420283,1749661852404,-490.0,0.00019342,2]
[365420284,1749661852412,-490.0,0.00019342,2]
[365420285,1749661852422,-989.0,0.00019342,2]
[365420286,1749661852431,-905.37,0.00019342,2]
[365420287,1749661852440,-490.0,0.00019342,2]
[365420288,1749661852449,-490.0,0.00019342,2]
[365420289,1749661852458,-573.45,0.00019342,2]
[365420290,1749661852468,-490.0,0.00019342,2]
[365420291,1749661852477,-490.0,0.00019342,2]
[365420292,1749661852487,-490.0,0.00019342,2]
[365420293,1749661852497,-490.0,0.00019342,2]
[365420294,1749661852505,-470.0,0.00019342,2]
[365420295,1749661852515,-613.85,0.00019342,2]
[365420296,1749661852525,-490.0,0.00019342,2]
[365420297,1749661852535,-490.0,0.00019342,2]
[365420298,1749661852544,-1072.07,0.00019342,2]
[365420299,1749661852553,-490.0,0.00019342,2]
[365420300,1749661852562,-1012.71,0.00019342,2]
[365420301,1749661852571,-490.0,0.00019342,2]
[365420302,1749661852581,-490.0,0.00019342,2]
[365420303,1749661852590,-490.0,0.00019342,2]
[365420304,1749661852599,-480.0,0.00019342,2]
[365420305,1749661852608,-490.0,0.00019342,2]
[365420306,1749661852617,-465.75632979,0.00019342,2]
[365420307,1749661852629,-24.24367021,0.00019342,2]
[365420308,1749661852638,-900.43,0.00019342,2]
[365420309,1749661852647,-495.37,0.00019342,2]
[365420310,1749661852656,-490.0,0.00019342,2]
[365420311,1749661852666,-2037.89,0.00019342,2]
[365420312,1749661852676,-490.0,0.00019342,2]
[365420313,1749661852686,-490.0,0.00019342,2]
[365420314,1749661852697,-490.0,0.00019342,2]
[365420315,1749661852706,-76.63384026,0.00019342,2]
[365420316,1749661852821,-289.18728201,0.00019342,2]
[365420317,1749661852832,-530.59887773,0.00019342,2]
[365420318,1749661852841,-490.0,0.00019342,2]
[365420319,1749661852850,-490.0,0.00019342,2]
[365420320,1749661852860,-604.6,0.00019342,2]
[365420321,1749661852869,-470.0,0.00019342,2]
[365420322,1749661852878,-480.0,0.00019342,2]
[365420323,1749661852887,-490.0,0.00019342,2]
[365420324,1749661852896,-490.0,0.00019342,2]
[365420325,1749661852905,-490.0,0.00019342,2]
[365420326,1749661852913,-470.0,0.00019342,2]
[365420327,1749661852922,-342.97904347,0.00019342,2]
[365420328,1749661852937,-480.0,0.00019178,2]
[365420329,1749661852947,-147.02095653,0.00019342,2]
[365420330,1749661852956,-68.25905847,0.00019342,2]
[365420331,1749661852967,-421.74094153,0.00019342,2]
[365420332,1749661852979,-388.5438091,0.00019342,2]
[365420333,1749661853456,150.0,0.00017002,2]
[365420334,1749661853593,-219.73365254,0.00019169,2]
[365420335,1749661853603,-438.11023746,0.00019178,2]
[365420336,1749661853614,-26.19624561,0.00019178,2]
[365420337,1749661853623,-490.0,0.00019178,2]
[365420338,1749661853632,-480.0,0.00019178,2]
[365420339,1749661853641,-480.0,0.00019178,2]
[365420340,1749661853650,-490.0,0.00019178,2]
[365420341,1749661853660,-226.2861909,0.00019342,2]
[365420342,1749661853669,-490.0,0.00019342,2]
[365420343,1749661853679,-1230.66,0.00019342,2]
[365420344,1749661853690,-387.76500153,0.00019342,2]
[365420345,1749661853700,-490.0,0.00019342,2]
[365420346,1749661853709,-750.13,0.00019342,2]
[365420347,1749661853719,-195.73,0.00019342,2]
[365420348,1749661853731,-490.0,0.00019342,2]
[365420349,1749661853741,-490.0,0.00019342,2]
[365420350,1749661853750,-490.0,0.00019342,2]
[365420351,1749661853759,-2038.55,0.00019342,2]
[365420352,1749661853769,-470.0,0.00019342,2]
[365420353,1749661853779,-470.0,0.00019342,2]
[365420354,1749661853788,-490.0,0.00019342,2]
[365420355,1749661853798,-490.0,0.00019342,2]
[365420356,1749661853807,-448.44,0.00019342,2]
[365420357,1749661853817,-500.0,0.00019373,2]
[365420358,1749661853825,-833.29909032,0.00019389,2]
[365420359,1749661853835,-168.0,0.00019495,2]
[365420360,1749661853844,-1163.2,0.00019505,2]
[365420361,1749661853853,-240.04029512,0.00019505,2]
[365420362,1749661853863,-2101.92,0.00019505,2]
[365420363,1749661853872,-500.0,0.00019505,2]
[365420364,1749661853881,-500.0,0.00019505,2]
[365420365,1749661853891,-500.0,0.00019505,2]
[365420366,1749661853900,-514.47,0.00019506,2]
[365420367,1749661853909,-490.0,0.00019506,2]
[365420368,1749661853919,-490.0,0.00019506,2]
[365420369,1749661853928,-490.0,0.00019506,2]
[365420370,1749661853937,-490.0,0.00019506,2]
[365420371,1749661853945,-490.0,0.00019506,2]
[365420372,1749661853954,-490.0,0.00019506,2]
[365420373,1749661853963,-490.0,0.00019506,2]
[365420374,1749661853973,-490.0,0.00019506,2]
[365420375,1749661853981,-490.0,0.00019506,2]
[365420376,1749661853990,-490.0,0.00019506,2]
[365420377,1749661853999,-490.0,0.00019506,2]
[365420378,1749661854008,-490.0,0.00019506,2]
[365420379,1749661854017,-490.0,0.00019506,2]
[365420380,1749661854026,-490.0,0.00019506,2]
[365420381,1749661854035,-490.0,0.00019506,2]
[365420382,1749661854045,-490.0,0.00019506,2]
[365420383,1749661854054,-490.0,0.00019506,2]
[365420384,1749661854063,-445.03,0.00019506,2]
[365420385,1749661854072,-504.97510197,0.00019506,2]
[365420386,1749661854081,-490.0,0.00019506,2]
[365420387,1749661854090,-490.0,0.00019506,2]
[365420388,1749661854099,-490.0,0.00019506,2]
[365420389,1749661854108,-490.0,0.00019506,2]
[365420390,1749661854116,-512.27,0.00019506,2]
[365420391,1749661854126,-449.6,0.00019506,2]
[365420392,1749661854135,-390.86027346,0.00019506,2]
[365420393,1749661854143,-509.63,0.00019506,2]
[365420394,1749661854152,-490.0,0.00019506,2]
[365420395,1749661854162,-490.0,0.00019506,2]
[365420396,1749661854171,-490.0,0.00019506,2]
[365420397,1749661854180,-490.0,0.00019506,2]
[365420398,1749661854189,-490.0,0.00019506,2]
[365420399,1749661854199,-877.72,0.00019506,2]
[365420400,1749661854208,-733.99,0.00019506,2]
[365420401,1749661854217,-490.0,0.00019506,2]
[365420402,1749661854227,-490.0,0.00019506,2]
[365420403,1749661854236,-490.0,0.00019506,2]
[365420404,1749661854245,-490.0,0.00019506,2]
[365420405,1749661854254,-557.98,0.00019506,2]
[365420406,1749661854264,-309.21696404,0.00019506,2]
[365420407,1749661854273,-250.0,0.00019506,2]
[365420408,1749661854282,-490.0,0.00019506,2]
[365420409,1749661854291,-490.0,0.00019506,2]
[365420410,1749661854301,-375.28,0.00019506,2]
[365420411,1749661854310,-513.53445286,0.00019506,2]
[365420412,1749661854319,-490.0,0.00019506,2]
[365420413,1749661854328,-490.0,0.00019506,2]
[365420414,1749661854346,-490.0,0.00019506,2]
[365420415,1749661854357,-612.89,0.00019506,2]
[365420416,1749661854366,-490.0,0.00019506,2]
[365420417,1749661854377,-560.35,0.00019506,2]
[365420418,1749661854386,-490.0,0.00019506,2]
[365420419,1749661854395,-480.0,0.00019506,2]
[365420420,1749661854404,-490.0,0.00019506,2]
[365420421,1749661854414,-490.0,0.00019506,2]
[365420422,1749661854423,-480.0,0.00019506,2]
[365420423,1749661854434,-490.0,0.00019506,2]
[365420424,1749661854443,-490.0,0.00019506,2]
[365420425,1749661854452,-480.0,0.00019506,2]
[365420426,1749661854461,-480.0,0.00019506,2]
[365420427,1749661854471,-490.0,0.00019506,2]
[365420428,1749661854480,-490.0,0.00019506,2]
[365420429,1749661854490,-480.0,0.00019506,2]
[365420430,1749661854499,-549.57,0.00019506,2]
[365420431,1749661854508,-480.0,0.00019506,2]
[365420432,1749661854518,-627.15,0.00019506,2]
[365420433,1749661854528,-887.4,0.00019506,2]
[365420434,1749661854537,-490.0,0.00019506,2]
[365420435,1749661854546,-490.0,0.00019506,2]
[365420436,1749661854556,-628.92,0.00019506,2]
[365420437,1749661854566,-490.0,0.00019506,2]
[365420438,1749661854576,-490.0,0.00019506,2]
[365420439,1749661854586,-796.14,0.00019506,2]
[365420440,1749661854595,-504.12,0.00019506,2]
[365420441,1749661854604,-490.0,0.00019506,2]
[365420442,1749661854614,-490.0,0.00019506,2]
[365420443,1749661854623,-490.0,0.00019506,2]
[365420444,1749661854633,-490.0,0.00019506,2]
[365420445,1749661854642,-490.0,0.00019506,2]
[365420446,1749661854651,-596.35,0.00019506,2]
[365420447,1749661854661,-490.0,0.00019506,2]
[365420448,1749661854671,-1043.27,0.00019506,2]
[365420449,1749661854681,-480.0,0.00019506,2]
[365420450,1749661854695,-490.0,0.00019506,2]
[365420451,1749661854707,-490.0,0.00019506,2]
[365420452,1749661854716,-530.15,0.00019506,2]
[365420453,1749661854727,-538.88,0.00019506,2]
[365420454,1749661854738,-470.0,0.00019506,2]
[365420455,1749661854747,-497.98,0.00019506,2]
[365420456,1749661854756,-490.0,0.00019506,2]
[365420457,1749661854766,-490.0,0.00019506,2]
[365420458,1749661854776,-315.35,0.00019506,2]
[365420459,1749661854786,-470.0,0.00019506,2]
[365420460,1749661854796,-490.0,0.00019506,2]
[365420461,1749661854806,-490.0,0.00019506,2]
[365420462,1749661854816,-924.56,0.00019506,2]
[365420463,1749661854826,-490.0,0.00019506,2]
[365420464,1749661854837,-780.45,0.00019506,2]
[365420465,1749661854847,-470.0,0.00019506,2]
[365420466,1749661854859,-209.87,0.00019506,2]
[365420467,1749661854869,-490.0,0.00019506,2]
[365420468,1749661854879,-588.12,0.00019506,2]
[365420469,1749661854889,-490.0,0.00019506,2]
[365420470,1749661854899,-470.0,0.00019506,2]
[365420471,1749661854909,-539.52,0.00019506,2]
[365420472,1749661854919,-490.0,0.00019506,2]
[365420473,1749661854929,-490.0,0.00019506,2]
[365420474,1749661854939,-490.0,0.00019506,2]
[365420475,1749661854949,-490.0,0.00019506,2]
[365420476,1749661854959,-735.24,0.00019506,2]
[365420477,1749661854969,-752.01,0.00019506,2]
[365420478,1749661854980,-868.47,0.00019506,2]
[365420479,1749661854991,-490.0,0.00019506,2]
[365420480,1749661855002,-490.0,0.00019506,2]
[365420481,1749661855012,-490.0,0.00019506,2]
[365420482,1749661855022,-490.0,0.00019506,2]
[365420483,1749661855032,-490.0,0.00019506,2]
[365420484,1749661855042,-490.0,0.00019506,2]
[365420485,1749661855052,-1037.85,0.00019506,2]
[365420486,1749661855062,-490.0,0.00019506,2]
[365420487,1749661855072,-490.0,0.00019506,2]
[365420488,1749661855082,-490.0,0.00019506,2]
[365420489,1749661855091,-490.0,0.00019506,2]
[365420490,1749661855101,-490.0,0.00019506,2]
[365420491,1749661855111,-366.32732262,0.00019506,2]
[365420492,1749661855121,-490.0,0.00019506,2]
[365420493,1749661855130,-490.0,0.00019506,2]
[365420494,1749661855140,-490.0,0.00019506,2]
[365420495,1749661855150,-490.0,0.00019506,2]
[365420496,1749661855160,-541.56,0.00019506,2]
[365420497,1749661855169,-1050.77,0.00019506,2]
[365420498,1749661855180,-184.15,0.00019506,2]
[365420499,1749661855190,-470.0,0.00019506,2]
[365420500,1749661855199,-490.0,0.00019506,2]
[365420501,1749661855209,-490.0,0.00019506,2]
[365420502,1749661855219,-490.0,0.00019506,2]
[365420503,1749661855232,-490.0,0.00019506,2]
[365420504,1749661855242,-470.0,0.00019506,2]
[365420505,1749661855252,-490.0,0.00019506,2]
[365420506,1749661855262,-490.0,0.00019506,2]
[365420507,1749661855272,-490.0,0.00019506,2]
[365420508,1749661855282,-490.0,0.00019506,2]
[365420509,1749661855292,-846.21,0.00019506,2]
[365420510,1749661855303,-490.0,0.00019506,2]
[365420511,1749661855314,-490.0,0.00019506,2]
[365420512,1749661855323,-480.0,0.00019506,2]
[365420513,1749661855333,-480.0,0.00019506,2]
[365420514,1749661855343,-490.0,0.00019506,2]
[365420515,1749661855353,-490.0,0.00019506,2]
[365420516,1749661855362,-186.40749717,0.00019506,2]
[365420517,1749661855373,-490.0,0.00019506,2]
[365420518,1749661855383,-490.0,0.00019506,2]
[365420519,1749661855392,-490.0,0.00019506,2]
[365420520,1749661855402,-528.88,0.00019506,2]
[365420521,1749661855412,-490.0,0.00019506,2]
[365420522,1749661855422,-490.0,0.00019506,2]
[365420523,1749661855432,-490.0,0.00019506,2]
[365420524,1749661855443,-171.52,0.00019506,2]
[365420525,1749661855453,-490.0,0.00019506,2]
[365420526,1749661855463,-1204.48,0.00019506,2]
[365420527,1749661855473,-490.0,0.00019506,2]
[365420528,1749661855485,-490.0,0.00019506,2]
[365420529,1749661855495,-490.0,0.00019506,2]
[365420530,1749661855506,-490.0,0.00019506,2]
[365420531,1749661855517,-540.97,0.00019506,2]
[365420532,1749661855527,-490.0,0.00019506,2]
[365420533,1749661855538,-490.0,0.00019506,2]
[365420534,1749661855548,-567.98029411,0.00019506,2]
[365420535,1749661855558,-490.0,0.00019506,2]
[365420536,1749661855569,-490.0,0.00019506,2]
[365420537,1749661855578,-490.0,0.00019506,2]
[365420538,1749661855588,-532.05,0.00019506,2]
[365420539,1749661855598,-229.29095985,0.00019506,2]
[365420540,1749661855610,-490.0,0.00019506,2]
[365420541,1749661855620,-490.0,0.00019506,2]
[365420542,1749661855631,-157.78,0.00019506,2]
[365420543,1749661855641,-490.0,0.00019506,2]
[365420544,1749661855652,-490.0,0.00019506,2]
[365420545,1749661855662,-553.54,0.00019506,2]
[365420546,1749661855672,-490.0,0.00019506,2]
[365420547,1749661855682,-480.0,0.00019506,2]
[365420548,1749661855695,-490.0,0.00019506,2]
[365420549,1749661855705,-490.0,0.00019506,2]
[365420550,1749661855716,-490.0,0.00019506,2]
[365420551,1749661855727,-490.0,0.00019506,2]
[365420552,1749661855737,-490.0,0.00019506,2]
[365420553,1749661855747,-589.7,0.00019506,2]
[365420554,1749661855757,-490.0,0.00019506,2]
[365420555,1749661855769,-517.64,0.00019506,2]
[365420556,1749661855780,-285.28717574,0.00019506,2]
[365420557,1749661855790,-490.0,0.00019506,2]
[365420558,1749661855801,-595.7,0.00019506,2]
[365420559,1749661855811,-490.0,0.00019506,2]
[365420560,1749661855821,-680.12,0.00019506,2]
[365420561,1749661855831,-490.0,0.00019506,2]